bitfinex/quotes_SOLUSD_20250308
["timestamp","ask_amount","ask_price","bid_price","bid_amount"]
[1741408294875,7.45e-05,140.68,140.66,27.87102112]
[1741408295265,7.45e-05,140.68,140.66,7.1093]
[1741408295462,7.45e-05,140.68,140.63,136.1458]
[1741408295667,20.76179562,140.68,140.63,141.7105]
[1741408295873,20.76172112,140.67,140.62,7.1441]
[1741408296075,7.45e-05,140.68,140.62,0.033]
[1741408296076,20.76172112,140.65,140.62,0.033]
[1741408299069,27.08622112,140.66,140.62,0.033]
[1741408299274,6.3245,140.66,140.62,0.033]
[1741408300665,20.76172112,140.67,140.62,0.033]
[1741408300987,20.76179562,140.68,140.62,27.90602112]
[1741408301195,7.45e-05,140.68,140.64,20.76172112]
[1741408301894,7.45e-05,140.68,140.65,20.76172112]
[1741408302097,7.45e-05,140.68,140.63,20.76172112]
[1741408302786,7.45e-05,140.68,140.64,20.76172112]
[1741408302982,7.45e-05,140.68,140.65,7.1098]
[1741408303388,7.45e-05,140.68,140.65,27.87152112]
[1741408304184,7.45e-05,140.68,140.64,7.1103]
[1741408304978,7.45e-05,140.68,140.64,20.76172112]
[1741408305298,7.45e-05,140.68,140.65,20.76172112]
[1741408305484,7.45e-05,140.68,140.65,20.79472112]
[1741408307799,7.45e-05,140.68,140.66,7.1093]
[1741408308500,7.45e-05,140.68,140.66,27.87102112]
[1741408309478,7.45e-05,140.68,140.66,7.1093]
[1741408309674,7.45e-05,140.68,140.67,20.76172112]
[1741408311474,7.45e-05,140.68,140.67,27.87052112]
[1741408311682,7.45e-05,140.68,140.67,162.47042112]
[1741408312601,7.45e-05,140.69,140.67,187.50006998]
[1741408312815,7.45e-05,140.69,140.68,39.41136998]
[1741408313117,7.45e-05,140.69,140.68,20.76172112]
[1741408313487,7.45e-05,140.69,140.68,27.87002112]
[1741408318019,7.45e-05,140.69,140.68,20.76172112]
[1741408318223,7.45e-05,140.69,140.65,134.6329]
[1741408318516,27.86959562,140.69,140.65,0.033]
[1741408318723,7.1078745,140.69,140.65,0.033]
[1741408319424,27.86959562,140.69,140.65,0.033]
[1741408319588,20.76172112,140.67,140.65,0.033]
[1741408319787,22.42442112,140.66,140.65,0.033]
[1741408320192,28.98832112,140.66,140.65,0.033]
[1741408321009,36.09762112,140.66,140.65,0.033]
[1741408322914,8.2266,140.66,140.65,0.033]
[1741408324506,20.76172112,140.68,140.65,0.033]
[1741408324712,6.3800745,140.69,140.65,0.033]
[1741408325021,34.24969562,140.69,140.65,0.033]
[1741408325922,20.76172112,140.68,140.65,0.033]
[1741408326618,20.76172112,140.67,140.65,0.033]
[1741408326921,20.76172112,140.66,140.65,0.033]
[1741408327518,20.76172112,140.67,140.65,0.033]
[1741408327826,20.76172112,140.66,140.65,0.033]
[1741408328718,27.87102112,140.66,140.65,0.033]
[1741408329027,20.76172112,140.66,140.65,0.033]
[1741408329325,27.87102112,140.66,140.65,0.033]
[1741408332228,46.52066998,140.66,140.65,0.033]
[1741408333328,27.87102112,140.66,140.65,0.033]
[1741408335928,7.1088,140.67,140.65,0.033]
[1741408336129,20.76172112,140.66,140.65,0.033]
[1741408337129,27.87102112,140.66,140.65,0.033]
[1741408337501,46.52066998,140.66,140.65,0.033]
[1741408338434,27.87102112,140.66,140.65,0.033]
[1741408339003,46.52066998,140.66,140.65,0.033]
[1741408348936,27.87102112,140.66,140.65,0.033]
[1741408350232,46.52066998,140.66,140.65,0.033]
[1741408351039,20.76172112,140.66,140.65,0.033]
[1741408351348,34.25062112,140.67,140.65,0.033]
[1741408352336,20.76172112,140.66,140.65,0.033]
[1741408353241,13.29472952,140.66,140.65,0.033]
[1741408353424,20.40402952,140.66,140.65,0.033]
[1741408353943,7.1093,140.66,140.65,0.033]
[1741408354320,20.40402952,140.66,140.65,0.033]
[1741408354840,39.05367838,140.66,140.65,0.033]
[1741408355845,39.05367838,140.66,140.62,0.033]
[1741408356046,31.94437838,140.63,140.62,0.033]
[1741408356549,13.29472952,140.63,140.62,0.033]
[1741408358239,20.40552952,140.63,140.62,0.033]
[1741408358622,39.05517838,140.63,140.62,0.033]
[1741408362150,7.1108,140.63,140.62,0.033]
[1741408362324,7.11,140.65,140.62,0.033]
[1741408362531,26.82472952,140.65,140.62,0.033]
[1741408363129,13.29472952,140.64,140.62,0.033]
[1741408363324,13.29472952,140.63,140.62,0.033]
[1741408364046,13.29472952,140.64,140.62,0.033]
[1741408364261,13.29472952,140.65,140.62,0.033]
[1741408364753,13.29472952,140.64,140.62,0.033]
[1741408365256,13.29472952,140.65,140.62,0.033]
[1741408365446,19.69472952,140.66,140.62,0.033]
[1741408366738,13.29472952,140.65,140.62,0.033]
[1741408368657,13.29472952,140.67,140.62,0.033]
[1741408368835,7.45e-05,140.69,140.64,13.29472952]
[1741408369030,7.45e-05,140.69,140.65,13.29472952]
[1741408369235,7.45e-05,140.69,140.66,1.5759]
[1741408370151,7.45e-05,140.69,140.68,13.29472952]
[1741408370556,7.45e-05,140.69,140.68,20.40302952]
[1741408371231,7.45e-05,140.69,140.68,27.85711798]
[1741408373036,7.45e-05,140.69,140.68,20.74881798]
[1741408373459,7.45e-05,140.69,140.66,156.92461798]
[1741408374536,7.45e-05,140.69,140.66,22.32471798]
[1741408375234,7.45e-05,140.69,140.67,20.74881798]
[1741408375655,7.45e-05,140.69,140.68,20.74881798]
[1741408376039,7.45e-05,140.69,140.68,27.85711798]
[1741408376434,7.45e-05,140.69,140.68,181.10666684]
[1741408377153,7.45e-05,140.69,140.68,162.45701798]
[1741408379554,7.45e-05,140.69,140.68,141.7082]
[1741408379735,7.45e-05,140.69,140.68,162.45701798]
[1741408381334,7.45e-05,140.69,140.68,155.34871798]
[1741408381538,7.45e-05,140.69,140.68,134.5999]
[1741408381945,7.45e-05,140.69,140.68,155.34871798]
[1741408382753,7.45e-05,140.69,140.68,134.5999]
[1741408383653,7.45e-05,140.69,140.68,162.45701798]
[1741408385944,7.45e-05,140.69,140.66,22.32471798]
[1741408386149,7.45e-05,140.69,140.66,1.5759]
[1741408386769,7.45e-05,140.69,140.66,8.6851]
[1741408386961,7.45e-05,140.69,140.66,1.5759]
[1741408387261,7.45e-05,140.69,140.66,8.6851]
[1741408387648,7.45e-05,140.69,140.66,1.5759]
[1741408387842,7.45e-05,140.69,140.64,27.85911798]
[1741408388045,7.45e-05,140.69,140.66,20.74881798]
[1741408389150,7.45e-05,140.69,140.64,7.1103]
[1741408389354,7.45e-05,140.69,140.65,20.74881798]
[1741408389875,7.45e-05,140.69,140.64,20.74881798]
[1741408390049,7.45e-05,140.69,140.64,27.85901798]
[1741408390242,20.74889248,140.69,140.63,27.85951798]
[1741408390458,20.74889248,140.69,140.63,20.74881798]
[1741408390773,20.74881798,140.68,140.62,29.50581798]
[1741408390954,20.74889248,140.69,140.63,20.74881798]
[1741408391654,7.45e-05,140.69,140.64,20.74881798]
[1741408391963,7.45e-05,140.69,140.66,20.74881798]
[1741408392345,7.45e-05,140.69,140.65,20.74881798]
[1741408393241,7.45e-05,140.69,140.67,13.2819218]
[1741408393447,7.45e-05,140.69,140.68,13.2819218]
[1741408393946,7.45e-05,140.69,140.68,20.3902218]
[1741408395548,7.45e-05,140.69,140.68,21.9811218]
[1741408395743,7.45e-05,140.69,140.68,40.63077066]
[1741408395949,7.45e-05,140.69,140.68,176.29648198]
[1741408396148,7.45e-05,140.69,140.68,175.23067066]
[1741408405379,7.45e-05,140.69,140.68,161.94874886]
[1741408405555,7.45e-05,140.69,140.68,175.23067066]
[1741408405878,7.45e-05,140.69,140.68,161.94874886]
[1741408406178,7.45e-05,140.69,140.68,13.2819218]
[1741408406962,7.45e-05,140.69,140.66,13.2819218]
[1741408408374,7.45e-05,140.69,140.67,13.2819218]
[1741408409480,7.45e-05,140.69,140.68,13.2819218]
[1741408410759,7.45e-05,140.69,140.67,154.9902218]
[1741408411179,7.45e-05,140.69,140.68,13.2819218]
[1741408412193,7.45e-05,140.69,140.68,31.93157066]
[1741408413267,7.45e-05,140.69,140.68,39.03987066]
[1741408416286,7.45e-05,140.69,140.68,173.63987066]
[1741408416879,7.45e-05,140.69,140.68,154.9902218]
[1741408421265,7.45e-05,140.69,140.68,173.63987066]
[1741408423408,7.45e-05,140.69,140.68,154.9902218]
[1741408423569,7.45e-05,140.69,140.68,141.7083]
[1741408423897,7.45e-05,140.69,140.68,154.9902218]
[1741408425296,7.45e-05,140.69,140.68,173.63987066]
[1741408427089,0.03,140.72,140.69,134.5999255]
[1741408427392,0.03,140.72,140.71,31.93157066]
[1741408427599,0.03,140.72,140.71,38.31157066]
[1741408427790,0.03,140.72,140.71,19.6619218]
[1741408428674,0.03,140.72,140.71,26.7687218]
[1741408429592,0.03,140.72,140.71,45.41837066]
[1741408430293,0.0001,140.72,140.71,181.08385828]
[1741408430499,0.0001,140.72,140.71,180.01829616]
[1741408435216,0.03,140.75,140.73,18.64964886]
[1741408435423,0.03,140.75,140.74,13.2819218]
[1741408437323,0.0001,140.75,140.74,20.3872218]
[1741408437812,0.0001,140.75,140.74,39.03687066]
[1741408438015,0.0001,140.75,140.74,40.10218378]
[1741408438423,0.0001,140.75,140.74,39.03687066]
[1741408439815,0.0001,140.75,140.73,154.9874473]
[1741408440024,0.0001,140.75,140.72,7.1062]
[1741408440201,0.0001,140.75,140.71,154.9883473]
[1741408440401,0.0001,140.75,140.71,147.8817473]
[1741408440610,0.0001,140.75,140.71,134.5998255]
[1741408440812,0.0001,140.75,140.71,154.9883473]
[1741408441010,0.0001,140.75,140.72,13.2819218]
[1741408441210,0.0001,140.75,140.71,154.9883473]
[1741408441410,0.0001,140.75,140.72,13.2819218]
[1741408441612,0.0001,140.75,140.73,13.2819218]
[1741408441808,0.0001,140.75,140.71,134.5998255]
[1741408442006,13.2820218,140.75,140.71,134.5998255]
[1741408442506,0.0001,140.75,140.71,134.5998255]
[1741408442708,7.9,140.74,140.69,13.2819218]
[1741408443939,15.0053,140.74,140.69,13.2819218]
[1741408444845,28.2872218,140.74,140.68,155.0228473]
[1741408445838,28.2872218,140.74,140.69,0.033]
[1741408446412,13.2819218,140.73,140.69,0.033]
[1741408447643,28.2872218,140.74,140.69,0.033]
[1741408448748,13.2819218,140.73,140.69,0.033]
[1741408448924,28.2872218,140.74,140.69,13.3149218]
[1741408449442,28.2872218,140.74,140.69,0.033]
[1741408450242,13.2819218,140.73,140.69,0.033]
[1741408450628,20.3877218,140.73,140.69,0.033]
[1741408453227,13.2819218,140.72,140.69,0.033]
[1741408454345,20.3883218,140.72,140.69,0.033]
[1741408454650,7.1064,140.72,140.69,0.033]
[1741408455356,13.2819218,140.73,140.69,0.033]
[1741408455560,21.1819218,140.74,140.69,13.3149218]
[1741408455858,21.1819218,140.74,140.69,0.033]
[1741408456149,21.1819218,140.74,140.69,13.3149218]
[1741408456454,21.1819218,140.74,140.69,20.4223218]
[1741408457645,7.9,140.74,140.69,20.4223218]
[1741408458029,13.2819218,140.73,140.69,0.033]
[1741408458529,13.2819218,140.72,140.69,0.033]
[1741408459841,20.3880218,140.73,140.69,0.033]
[1741408460025,13.2819218,140.73,140.69,0.033]
[1741408460425,28.2873218,140.74,140.69,0.033]
[1741408460724,21.1819218,140.74,140.69,0.033]
[1741408462146,7.9,140.74,140.69,13.3149218]
[1741408462640,7.9,140.74,140.7,13.2819218]
[1741408463645,7.9,140.74,140.69,0.033]
[1741408463646,13.2819218,140.73,140.69,0.033]
[1741408464222,28.2873218,140.74,140.69,0.033]
[1741408464727,13.2819218,140.72,140.69,0.033]
[1741408464927,13.2819218,140.73,140.69,0.033]
[1741408465144,21.1819218,140.74,140.69,0.033]
[1741408465524,7.9,140.74,140.7,13.2819218]
[1741408466032,0.0001,140.75,140.71,13.2819218]
[1741408466232,0.0001,140.75,140.7,134.5998255]
[1741408466446,13.2819218,140.74,140.7,134.5998255]
[1741408467636,13.2819218,140.74,140.7,141.7070255]
[1741408468557,0.0001,140.75,140.7,154.9889473]
[1741408469329,0.0001,140.75,140.7,141.7070255]
[1741408469552,13.2820218,140.75,140.7,141.7070255]
[1741408469756,13.2820218,140.75,140.7,7.1072]
[1741408472668,0.0001,140.75,140.71,13.2819218]
[1741408474671,0.0001,140.75,140.73,13.2819218]
[1741408476068,0.0001,140.75,140.74,13.2819218]
[1741408476269,0.0001,140.75,140.74,31.93157066]
[1741408476574,0.0001,140.75,140.74,173.63669616]
[1741408480474,0.0001,140.75,140.74,175.29299616]
[1741408482077,0.0001,140.75,140.74,181.67299616]
[1741408485374,0.0001,140.75,140.74,173.63669616]
[1741408486974,0.0001,140.75,140.74,154.9870473]
[1741408487176,0.0001,140.75,140.74,141.7051255]
[1741408488077,0.0001,140.75,140.72,134.5998255]
[1741408488262,0.0001,140.75,140.72,141.7059255]
[1741408488461,0.0001,140.75,140.73,13.2819218]
[1741408488782,0.0001,140.75,140.74,31.93157066]
[1741408489455,0.0001,140.75,140.74,166.53139616]
[1741408490476,0.0001,140.75,140.74,173.63669616]
[1741408504396,0.0001,140.75,140.74,173.66969616]
[1741408515398,0.0001,140.78,140.74,191.43289616]
[1741408515590,0.0001,140.78,140.77,13.2819218]
[1741408516190,0.0001,140.78,140.77,173.63509616]
[1741408516504,0.0001,140.78,140.77,141.7035255]
[1741408517487,0.0001,140.78,140.77,154.9854473]
[1741408518102,0.0001,140.78,140.77,173.63509616]
[1741408520500,0.0001,140.78,140.77,141.7035255]
[1741408521375,0.0001,140.78,140.77,154.9854473]
[1741408525221,0.0001,140.78,140.77,173.63509616]
[1741408532519,1.642,140.85,140.77,173.63509616]
[1741408532724,13.2819218,140.84,140.78,13.2819218]
[1741408533592,13.2819218,140.84,140.79,7.1027]
[1741408535812,1.642,140.85,140.79,141.7025255]
[1741408535986,6.3894,140.87,140.81,13.2819218]
[1741408536190,6.3894,140.87,140.82,13.2819218]
[1741408536394,19.6713218,140.87,140.81,147.8817473]
[1741408537208,13.2819218,140.86,140.81,134.5998255]
[1741408537515,6.3894,140.87,140.82,13.2819218]
[1741408537717,6.3894,140.87,140.83,7.1007]
[1741408538094,19.6713218,140.87,140.82,7.1011]
[1741408538491,1.6373,140.88,140.82,20.3830218]
[1741408538720,14.9192218,140.88,140.82,20.3830218]
[1741408539123,13.2819218,140.87,140.82,20.3830218]
[1741408540123,13.3119218,140.87,140.82,20.3830218]
[1741408540425,0.03,140.87,140.82,20.3830218]
[1741408543103,0.03,140.87,140.83,13.2819218]
[1741408543413,0.03,140.87,140.86,13.2819218]
[1741408543721,0.03,140.87,140.85,13.2819218]
[1741408544426,0.03,140.87,140.86,7.0992]
[1741408544615,0.03,140.87,140.84,13.2819218]
[1741408544821,13.3119218,140.87,140.83,7.1007]
[1741408545502,13.3119218,140.87,140.82,13.2819218]
[1741408545709,0.03,140.87,140.82,20.3830218]
[1741408548302,0.03,140.87,140.83,13.2819218]
[1741408549532,0.03,140.87,140.83,7.1004]
[1741408549828,0.03,140.87,140.86,13.2819218]
[1741408550217,0.03,140.87,140.85,13.2819218]
[1741408550633,0.03,140.87,140.86,13.2819218]
[1741408551140,0.03,140.87,140.84,134.5998255]
[1741408551431,0.03,140.87,140.86,20.3811218]
[1741408555129,0.03,140.87,140.86,7.0992]
[1741408555320,0.03,140.87,140.85,7.0996]
[1741408555524,0.03,140.87,140.84,7.1001]
[1741408556029,1.6552,140.87,140.82,141.7009255]
[1741408556327,1.6552,140.87,140.82,20.3830218]
[1741408556531,1.6552,140.87,140.83,13.2819218]
[1741408556711,1.6552,140.87,140.82,20.3830218]
[1741408557439,14.9371218,140.87,140.82,20.3830218]
[1741408558435,1.6552,140.87,140.82,20.3830218]
[1741408558744,0.03,140.87,140.86,13.2819218]
[1741408559125,0.03,140.87,140.86,20.3811218]
[1741408560429,0.03,140.87,140.86,173.63059616]
[1741408561445,0.03,140.87,140.86,154.9809473]
[1741408562937,0.03,140.87,140.86,173.63059616]
[1741408566151,0.03,140.87,140.84,140.9198255]
[1741408566339,0.03,140.87,140.85,7.0995]
[1741408566540,0.03,140.87,140.86,31.93157066]
[1741408567641,0.03,140.87,140.86,39.03077066]
[1741408570642,0.03,140.87,140.86,173.63059616]
[1741408573440,0.03,140.87,140.86,154.9809473]
[1741408575465,0.03,140.87,140.86,173.63059616]
[1741408577144,0.03,140.87,140.86,20.3811218]
[1741408577553,0.03,140.87,140.86,7.0992]
[1741408577751,0.03,140.87,140.86,20.3811218]
[1741408578563,0.03,140.87,140.86,13.2819218]
[1741408578761,13.3119218,140.87,140.84,0.033]
[1741408579069,13.2819218,140.85,140.84,0.033]
[1741408580261,31.93157066,140.85,140.84,0.033]
[1741408581248,31.93157066,140.85,140.81,0.033]
[1741408581249,74.8989598,140.85,140.81,0.033]
[1741408581456,39.37270433,140.82,140.81,0.033]
[1741408581663,40.92090433,140.82,140.81,0.033]
[1741408581863,47.07620433,140.82,140.81,0.033]
[1741408582259,18.64964886,140.81,140.77,0.033]
[1741408582463,20.72305547,140.78,140.77,0.033]
[1741408584473,46.47590433,140.78,140.77,0.033]
[1741408584671,54.46470433,140.78,140.77,0.033]
[1741408585156,47.36150433,140.78,140.77,0.033]
[1741408586455,75.1877598,140.78,140.74,0.033]
[1741408586675,20.72305547,140.75,140.74,0.033]
[1741408588171,20.72305547,140.76,140.74,0.033]
[1741408588474,39.37270433,140.76,140.74,0.033]
[1741408588678,20.72305547,140.75,140.74,0.033]
[1741408588885,20.72305547,140.76,140.74,0.033]
[1741408589177,20.72305547,140.77,140.74,0.033]
[1741408590183,28.71185547,140.78,140.74,0.033]
[1741408590360,7.9888,140.78,140.74,0.033]
[1741408590556,28.71185547,140.78,140.74,0.033]
[1741408590879,20.72305547,140.77,140.74,0.033]
[1741408593356,28.71185547,140.78,140.74,0.033]
[1741408595059,20.72305547,140.77,140.74,0.033]
[1741408595978,28.71185547,140.78,140.74,0.033]
[1741408597376,22.31945547,140.78,140.74,0.033]
[1741408598583,20.72305547,140.77,140.74,0.033]
[1741408601387,13.2730163,140.77,140.74,0.033]
[1741408603375,14.8994163,140.78,140.74,0.033]
[1741408606985,13.3030163,140.78,140.74,0.033]
[1741408607172,0.03,140.78,140.75,13.2730163]
[1741408607378,0.03,140.78,140.76,13.2730163]
[1741408608070,0.03,140.78,140.75,13.2730163]
[1741408608376,0.03,140.78,140.76,7.1042]
[1741408609185,0.03,140.78,140.76,20.3772163]
[1741408609701,0.03,140.78,140.77,13.2730163]
[1741408610196,0.03,140.78,140.76,7.1042]
[1741408610900,0.03,140.78,140.75,7.1046]
[1741408611897,0.03,140.78,140.74,0.033]
[1741408612103,0.03,140.78,140.74,7.1383]
[1741408612596,0.03,140.78,140.74,0.033]
[1741408612806,13.3030163,140.78,140.74,0.033]
[1741408613504,0.03,140.78,140.74,0.033]
[1741408615080,0.03,140.78,140.74,13.3060163]
[1741408615807,13.3030163,140.78,140.74,0.033]
[1741408615976,13.2730163,140.77,140.74,0.033]
[1741408616179,13.3030163,140.78,140.74,0.033]
[1741408616607,0.03,140.78,140.74,0.033]
[1741408621186,13.3030163,140.78,140.74,0.033]
[1741408621377,0.03,140.78,140.74,0.033]
[1741408627901,0.03,140.78,140.74,13.3060163]
[1741408628117,0.03,140.78,140.75,13.2730163]
[1741408628683,0.03,140.78,140.74,0.033]
[1741408629084,0.03,140.78,140.74,13.3060163]
[1741408630000,0.03,140.78,140.74,20.4109163]
[1741408631917,0.03,140.78,140.74,141.7377255]
[1741408632118,0.03,140.78,140.77,13.2730163]
[1741408632327,0.03,140.78,140.74,155.0107418]
[1741408632618,0.03,140.78,140.74,7.1379]
[1741408633312,0.03,140.78,140.75,13.2730163]
[1741408633699,0.03,140.78,140.76,7.1042]
[1741408634301,0.03,140.78,140.74,0.033]
[1741408634495,0.03,140.78,140.74,20.4111163]
[1741408634808,0.03,140.78,140.76,13.2730163]
[1741408635214,0.03,140.78,140.77,13.2730163]
[1741408635522,0.03,140.78,140.77,147.8728418]
[1741408635742,0.03,140.78,140.77,154.9765418]
[1741408638999,0.03,140.78,140.77,20.3767163]
[1741408641332,0.03,140.78,140.76,7.1041]
[1741408641516,0.03,140.78,140.75,7.1046]
[1741408642732,0.03,140.78,140.74,7.1381]
[1741408644325,0.03,140.78,140.74,0.033]
[1741408644633,13.2730163,140.77,140.74,0.033]
[1741408645238,13.3030163,140.78,140.74,0.033]
[1741408645611,0.03,140.78,140.74,0.033]
[1741408646108,0.03,140.78,140.74,13.3060163]
[1741408646314,0.03,140.78,140.76,13.2730163]
[1741408646529,0.03,140.78,140.76,20.3771163]
[1741408647439,0.03,140.78,140.76,7.1041]
[1741408647755,0.03,140.78,140.74,147.9058418]
[1741408647923,13.3030163,140.78,140.74,134.6328255]
[1741408648545,13.3030163,140.78,140.75,0.033]
[1741408648844,20.4065163,140.78,140.75,0.033]
[1741408649646,13.2730163,140.77,140.75,0.033]
[1741408650953,20.3769163,140.77,140.75,0.033]
[1741408652026,0.03,140.78,140.75,0.033]
[1741408652633,13.3030163,140.78,140.75,0.033]
[1741408652840,20.4063163,140.78,140.75,0.033]
[1741408654460,20.4064163,140.78,140.75,0.033]
[1741408656046,13.3030163,140.78,140.75,0.033]
[1741408656255,0.03,140.78,140.75,0.033]
[1741408658754,13.3030163,140.78,140.75,0.033]
[1741408658960,13.2730163,140.77,140.75,0.033]
[1741408659455,31.92266516,140.76,140.75,0.033]
[1741408660847,39.02686516,140.76,140.75,0.033]
[1741408661864,18.64964886,140.75,140.69,0.033]
[1741408662048,13.2730163,140.7,140.69,0.033]
[1741408663043,13.2730163,140.71,140.69,0.033]
[1741408664836,13.2730163,140.7,140.69,0.033]
[1741408665859,20.3803163,140.7,140.69,0.033]
[1741408666060,13.2730163,140.7,140.69,0.033]
[1741408666452,13.2730163,140.71,140.69,0.033]
[1741408667555,13.2730163,140.7,140.69,0.033]
[1741408668548,13.2730163,140.71,140.69,0.033]
[1741408670079,13.2730163,140.7,140.69,0.033]
[1741408673448,13.2730163,140.71,140.69,0.033]
[1741408676177,13.3030163,140.74,140.69,0.033]
[1741408676946,0.03,140.74,140.69,13.3060163]
[1741408677153,0.03,140.74,140.69,0.033]
[1741408677484,0.03,140.74,140.7,13.2730163]
[1741408678482,13.3030163,140.74,140.7,7.1069]
[1741408678663,0.03,140.74,140.7,7.1069]
[1741408679588,0.03,140.74,140.7,20.3799163]
[1741408681389,0.03,140.74,140.7,7.1069]
[1741408682188,0.03,140.74,140.7,13.2730163]
[1741408683388,0.03,140.74,140.69,13.3060163]
[1741408683692,0.03,140.74,140.7,7.1073]
[1741408684183,0.03,140.74,140.7,20.3803163]
[1741408685870,0.03,140.74,140.71,13.2730163]
[1741408686065,0.03,140.74,140.72,13.2730163]
[1741408686269,0.03,140.74,140.73,13.2730163]
[1741408686897,0.03,140.74,140.72,13.2730163]
[1741408687282,0.03,140.74,140.73,13.2730163]
[1741408687795,0.03,140.74,140.72,21.0587163]
[1741408688001,0.03,140.74,140.69,13.3060163]
[1741408688318,0.03,140.74,140.7,7.1071]
[1741408689500,13.3030163,140.74,140.69,0.033]
[1741408689704,13.2730163,140.72,140.69,0.033]
[1741408689882,13.2730163,140.71,140.69,0.033]
[1741408690703,13.2730163,140.72,140.69,0.033]
[1741408692421,20.3788163,140.73,140.69,0.033]
[1741408692581,13.2730163,140.73,140.69,0.033]
[1741408694406,0.03,140.74,140.69,0.033]
[1741408694609,0.03,140.74,140.69,13.3060163]
[1741408695594,13.2730163,140.73,140.69,0.033]
[1741408695819,20.3789163,140.73,140.69,0.033]
[1741408696624,13.2730163,140.73,140.69,0.033]
[1741408696921,7.1058,140.73,140.69,0.033]
[1741408697502,13.3030163,140.74,140.69,0.033]
[1741408697706,20.4084163,140.74,140.69,0.033]
[1741408698199,13.2730163,140.73,140.69,0.033]
[1741408699816,20.3789163,140.73,140.69,0.033]
[1741408700017,7.1059,140.73,140.69,0.033]
[1741408700915,0.03,140.74,140.69,0.033]
[1741408701116,7.1354,140.74,140.69,0.033]
[1741408702216,20.4084163,140.74,140.69,0.033]
[1741408702846,13.3030163,140.74,140.69,0.033]
[1741408703048,0.03,140.74,140.71,13.2730163]
[1741408703220,0.03,140.74,140.73,13.2730163]
[1741408703404,0.03,140.74,140.72,13.2730163]
[1741408703610,0.03,140.74,140.7,155.7372418]
[1741408703825,0.03,140.74,140.7,21.1374163]
[1741408704021,0.03,140.74,140.7,28.2443163]
[1741408704224,0.03,140.74,140.72,13.2730163]
[1741408705814,0.03,140.74,140.73,13.2730163]
[1741408706338,0.03,140.74,140.73,20.3788163]
[1741408707619,0.03,140.74,140.71,20.3798163]
[1741408707818,0.03,140.74,140.72,13.2730163]
[1741408708142,0.03,140.74,140.73,13.2730163]
[1741408708348,0.03,140.74,140.73,20.3788163]
[1741408712050,0.03,140.74,140.73,13.2730163]
[1741408712238,0.03,140.74,140.72,20.3793163]
[1741408714357,0.03,140.74,140.7,1.6577]
[1741408714539,13.2730163,140.72,140.69,0.033]
[1741408715446,0.03,140.74,140.69,0.033]
[1741408715447,13.2730163,140.71,140.69,0.033]
[1741408715633,13.2730163,140.7,140.69,0.033]
[1741408716459,13.2730163,140.71,140.69,0.033]
[1741408716753,7.1353,140.74,140.69,0.033]
[1741408716958,13.2730163,140.72,140.69,0.033]
[1741408721326,13.2730163,140.73,140.69,0.033]
[1741408723675,20.3789163,140.73,140.69,0.033]
[1741408723970,13.2730163,140.73,140.69,0.033]
[1741408724335,20.3790163,140.73,140.69,0.033]
[1741408725270,0.03,140.74,140.69,0.033]
[1741408725475,13.2730163,140.73,140.69,0.033]
[1741408726577,7.1354,140.74,140.69,0.033]
[1741408726578,13.3030163,140.74,140.69,0.033]
[1741408727371,0.03,140.74,140.69,0.033]
[1741408727673,13.3030163,140.74,140.69,0.033]
[1741408729277,0.03,140.74,140.69,13.3060163]
[1741408729453,0.03,140.74,140.71,13.2730163]
[1741408730639,0.03,140.74,140.73,31.92266516]
[1741408730837,0.03,140.74,140.73,166.52249066]
[1741408731247,0.0001,140.74,140.73,166.52249066]
[1741408731938,0.03,140.78,140.74,26.44934886]
[1741408732172,11.17867288,140.85,140.78,18.64964886]
[1741408732342,13.2730163,140.82,140.76,134.5998255]
[1741408732542,13.2730163,140.83,140.77,13.2730163]
[1741408732743,24.45168918,140.85,140.79,13.2730163]
[1741408732943,7.8627,140.86,140.81,13.2730163]
[1741408733246,19.6896163,140.87,140.83,20.70426072]
[1741408733247,0.03,140.87,140.83,20.70426072]
[1741408733450,0.03,140.87,140.84,20.70426072]